[Event "*** Titled Tuesday Blitz"]
[Site "Chess.com"]
[Date "2021.02.16"]
[Round "7"]
[White "Stewie_89"]
[Black "ChristopherYoo"]
[Result "0-1"]
[WhiteElo "2611"]
[BlackElo "2892"]
[TimeControl "180+1"]
[EndTime "11:19:50 PST"]
[Termination "ChristopherYoo won by checkmate"]

1. e4 {[%clk 0:03:00.9]} 1... c5 {[%clk 0:02:59.5]} 2. Nf3 {[%clk 0:03:00.6]}
2... e6 {[%clk 0:02:59.5]} 3. b3 {[%clk 0:03:00.6]} 3... Nf6 {[%clk 0:02:58.1]}
4. e5 {[%clk 0:02:59.4]} 4... Nd5 {[%clk 0:02:58.2]} 5. Bb2 {[%clk 0:02:58.3]}
5... Nc6 {[%clk 0:02:57.7]} 6. c4 {[%clk 0:02:57.8]} 6... Nde7 {[%clk
0:02:57.6]} 7. Nc3 {[%clk 0:02:44.7]} 7... Ng6 {[%clk 0:02:57.1]} 8. Nb5 {[%clk
0:02:42.7]} 8... b6 {[%clk 0:02:29.3]} 9. h4 {[%clk 0:02:37.7]} 9... h5 {[%clk
0:02:07.5]} 10. g3 {[%clk 0:02:36.5]} 10... Bb7 {[%clk 0:02:06]} 11. Nd6+ {[%clk
0:02:23.1]} 11... Bxd6 {[%clk 0:02:04.8]} 12. exd6 {[%clk 0:02:24]} 12... Nd4
{[%clk 0:01:27.4]} 13. Nxd4 {[%clk 0:02:23.1]} 13... Bxh1 {[%clk 0:01:13.9]} 14.
Nb5 {[%clk 0:02:22.2]} 14... Kf8 {[%clk 0:01:13.5]} 15. Bd3 {[%clk 0:02:18.9]}
15... Bc6 {[%clk 0:00:53.4]} 16. Nc7 {[%clk 0:02:17.3]} 16... Rc8 {[%clk
0:00:53.3]} 17. Qc2 {[%clk 0:02:11.2]} 17... Rh6 {[%clk 0:00:50.8]} 18. O-O-O
{[%clk 0:01:52.9]} 18... Rxc7 {[%clk 0:00:48.2]} 19. dxc7 {[%clk 0:01:53.8]}
19... Qxc7 {[%clk 0:00:48.8]} 20. f4 {[%clk 0:01:53.8]} 20... Ne7 {[%clk
0:00:40.4]} 21. Qc3 {[%clk 0:01:22.7]} 21... f6 {[%clk 0:00:39.7]} 22. b4 {[%clk
0:01:22.7]} 22... cxb4 {[%clk 0:00:36.5]} 23. Qxb4 {[%clk 0:01:21.6]} 23... a5
{[%clk 0:00:32.6]} 24. Qc3 {[%clk 0:01:21]} 24... Kf7 {[%clk 0:00:25.9]} 25. Ba3
{[%clk 0:01:20.4]} 25... Nc8 {[%clk 0:00:23.7]} 26. Bc2 {[%clk 0:01:18.4]} 26...
Nd6 {[%clk 0:00:23.1]} 27. Qd4 {[%clk 0:01:14.5]} 27... Nb7 {[%clk 0:00:22.8]}
28. f5 {[%clk 0:01:12.1]} 28... e5 {[%clk 0:00:22.4]} 29. Qc3 {[%clk 0:01:09.9]}
29... Rh8 {[%clk 0:00:22.4]} 30. d4 {[%clk 0:01:09.7]} 30... exd4 {[%clk
0:00:22.3]} 31. Rxd4 {[%clk 0:01:07.5]} 31... Re8 {[%clk 0:00:22.1]} 32. c5
{[%clk 0:00:57.7]} 32... Nxc5 {[%clk 0:00:21.7]} 33. Bxc5 {[%clk 0:00:56.5]}
33... bxc5 {[%clk 0:00:22.2]} 34. Bb3+ {[%clk 0:00:51.9]} 34... Ke7 {[%clk
0:00:22.5]} 35. Qxc5+ {[%clk 0:00:49.5]} 35... Kd8 {[%clk 0:00:22.6]} 36. Bf7
{[%clk 0:00:43.8]} 36... Re7 {[%clk 0:00:18.6]} 37. Bc4 {[%clk 0:00:34.4]} 37...
Qe5 {[%clk 0:00:15.9]} 38. Qa7 {[%clk 0:00:28.8]} 38... Qxg3 {[%clk 0:00:12.4]}
39. Qxa5+ {[%clk 0:00:27.7]} 39... Qc7 {[%clk 0:00:12.1]} 40. Qd2 {[%clk
0:00:21.7]} 40... Qe5 {[%clk 0:00:10.9]} 41. Be6 {[%clk 0:00:20.6]} 41... Kc7
{[%clk 0:00:10.1]} 42. Bd5 {[%clk 0:00:19.5]} 42... Qe1+ {[%clk 0:00:08]} 43.
Qxe1 {[%clk 0:00:18.8]} 43... Rxe1+ {[%clk 0:00:08.9]} 44. Kd2 {[%clk
0:00:19.4]} 44... Re5 {[%clk 0:00:09]} 45. Bxc6 {[%clk 0:00:19.2]} 45... Kxc6
{[%clk 0:00:09.3]} 46. Rc4+ {[%clk 0:00:18.9]} 46... Kd6 {[%clk 0:00:07.9]} 47.
Rd4+ {[%clk 0:00:19.1]} 47... Ke7 {[%clk 0:00:08.2]} 48. a4 {[%clk 0:00:18.8]}
48... Rxf5 {[%clk 0:00:08.1]} 49. Kc3 {[%clk 0:00:19.4]} 49... d5 {[%clk
0:00:04]} 50. Kb4 {[%clk 0:00:19.3]} 50... Kd6 {[%clk 0:00:04.5]} 51. Kb5 {[%clk
0:00:18.8]} 51... Rf1 {[%clk 0:00:04.2]} 52. a5 {[%clk 0:00:18.9]} 52... Rb1+
{[%clk 0:00:04.4]} 53. Ka6 {[%clk 0:00:19.3]} 53... Kc5 {[%clk 0:00:04.8]} 54.
Rd2 {[%clk 0:00:19.2]} 54... d4 {[%clk 0:00:05.2]} 55. Ka7 {[%clk 0:00:19.4]}
55... Kc4 {[%clk 0:00:05.3]} 56. a6 {[%clk 0:00:19.7]} 56... d3 {[%clk
0:00:05.6]} 57. Ka8 {[%clk 0:00:19.4]} 57... Kc3 {[%clk 0:00:06]} 58. Ra2 {[%clk
0:00:19.3]} 58... d2 {[%clk 0:00:06.2]} 59. a7 {[%clk 0:00:11.7]} 59... d1=Q
{[%clk 0:00:04.5]} 60. Rc2+ {[%clk 0:00:11.5]} 60... Kb3 {[%clk 0:00:04.7]} 61.
Rc3+ {[%clk 0:00:03.8]} 61... Kb2 {[%clk 0:00:05.1]} 62. Rd3 {[%clk 0:00:01.8]}
62... Qxd3 {[%clk 0:00:04.8]} 63. Kb8 {[%clk 0:00:01.6]} 63... Kc3+ {[%clk
0:00:04.9]} 64. Kc8 {[%clk 0:00:02]} 64... Qc4+ {[%clk 0:00:05]} 65. Kd8 {[%clk
0:00:02.9]} 65... Qd5+ {[%clk 0:00:04.3]} 66. Ke8 {[%clk 0:00:03.1]} 66... Rb7
{[%clk 0:00:03.4]} 67. Kf8 {[%clk 0:00:03.3]} 67... Qf7# {[%clk 0:00:03.5]} 0-1

[Event "*** Titled Tuesday Blitz"]
[Site "Chess.com"]
[Date "2021.02.16"]
[Round "7"]
[White "JiiHart"]
[Black "Hercog"]
[Result "0-1"]
[WhiteElo "2117"]
[BlackElo "2356"]
[TimeControl "180+1"]
[EndTime "11:19:50 PST"]
[Termination "Hercog won on time"]

1. e4 {[%clk 0:03:00.9]} 1... c6 {[%clk 0:02:59.2]} 2. d4 {[%clk 0:03:00.2]}
2... d5 {[%clk 0:02:59.3]} 3. Nc3 {[%clk 0:03:00.7]} 3... dxe4 {[%clk 0:02:59]}
4. Nxe4 {[%clk 0:03:01.6]} 4... Bf5 {[%clk 0:02:59.2]} 5. Ng3 {[%clk 0:03:01.4]}
5... Bg6 {[%clk 0:02:59.3]} 6. h4 {[%clk 0:03:01.9]} 6... h6 {[%clk 0:02:59]} 7.
N1e2 {[%clk 0:03:01.8]} 7... e6 {[%clk 0:02:55]} 8. Nf4 {[%clk 0:03:01.5]} 8...
Bh7 {[%clk 0:02:51.8]} 9. Bc4 {[%clk 0:03:00.7]} 9... Nf6 {[%clk 0:02:41.9]} 10.
Ngh5 {[%clk 0:02:59.6]} 10... Nbd7 {[%clk 0:02:34.1]} 11. Qe2 {[%clk 0:02:56.3]}
11... Nxh5 {[%clk 0:02:27.5]} 12. Nxh5 {[%clk 0:02:55.5]} 12... Nf6 {[%clk
0:02:25.7]} 13. Nxf6+ {[%clk 0:02:53.3]} 13... Qxf6 {[%clk 0:02:25.4]} 14. Be3
{[%clk 0:02:53.3]} 14... Bd6 {[%clk 0:02:11.4]} 15. O-O-O {[%clk 0:02:52.2]}
15... Bf4 {[%clk 0:02:10.9]} 16. d5 {[%clk 0:02:37]} 16... cxd5 {[%clk
0:01:44.8]} 17. Bb5+ {[%clk 0:02:27.4]} 17... Ke7 {[%clk 0:01:40.4]} 18. Kb1
{[%clk 0:01:53]} 18... Rhd8 {[%clk 0:01:37.9]} 19. Bc5+ {[%clk 0:01:23.1]} 19...
Bd6 {[%clk 0:01:37.2]} 20. Rxd5 {[%clk 0:01:11.1]} 20... Bxc2+ {[%clk
0:01:19.8]} 21. Kxc2 {[%clk 0:01:00.1]} 21... Rac8 {[%clk 0:01:19]} 22. b4
{[%clk 0:00:45.5]} 22... b6 {[%clk 0:01:18.9]} 23. Rhd1 {[%clk 0:00:16.2]} 23...
bxc5 {[%clk 0:01:14.4]} 24. bxc5 {[%clk 0:00:15.7]} 24... Rxc5+ {[%clk 0:01:06]}
25. Rxc5 {[%clk 0:00:15.8]} 25... Bxc5 {[%clk 0:01:05.3]} 26. Rxd8 {[%clk
0:00:15.8]} 26... Kxd8 {[%clk 0:01:05.7]} 27. Qd3+ {[%clk 0:00:16.4]} 27... Bd4
{[%clk 0:00:58.7]} 28. Qc4 {[%clk 0:00:15.2]} 28... Qxf2+ {[%clk 0:00:57.1]} 29.
Kd3 {[%clk 0:00:15.3]} 29... Qe3+ {[%clk 0:00:55.1]} 30. Kc2 {[%clk 0:00:15.2]}
30... Bb6 {[%clk 0:00:51.5]} 31. Qc6 {[%clk 0:00:14.8]} 31... Qc5+ {[%clk
0:00:50.5]} 32. Qxc5 {[%clk 0:00:15.1]} 32... Bxc5 {[%clk 0:00:50.9]} 33. a4
{[%clk 0:00:14.9]} 33... a5 {[%clk 0:00:46.5]} 34. Kd3 {[%clk 0:00:14.4]} 34...
Ke7 {[%clk 0:00:46.2]} 35. Ke4 {[%clk 0:00:14.2]} 35... f5+ {[%clk 0:00:46]} 36.
Kf3 {[%clk 0:00:12.7]} 36... g5 {[%clk 0:00:43.3]} 37. hxg5 {[%clk 0:00:11.4]}
37... hxg5 {[%clk 0:00:43.3]} 38. g4 {[%clk 0:00:10.1]} 38... Kf6 {[%clk
0:00:41.4]} 39. Bd7 {[%clk 0:00:07.8]} 39... Bb4 {[%clk 0:00:39.7]} 40. Bc8
{[%clk 0:00:07.7]} 40... Ke5 {[%clk 0:00:38.6]} 41. Bd7 {[%clk 0:00:07.6]} 41...
Bc3 {[%clk 0:00:37.6]} 42. Bc8 {[%clk 0:00:07.6]} 42... Bd2 {[%clk 0:00:36.6]}
43. Bd7 {[%clk 0:00:05.5]} 43... fxg4+ {[%clk 0:00:35.4]} 44. Kxg4 {[%clk
0:00:05.1]} 44... Kd5 {[%clk 0:00:35.6]} 45. Kf3 {[%clk 0:00:04.2]} 45... e5
{[%clk 0:00:35]} 46. Ke2 {[%clk 0:00:03.9]} 46... Bf4 {[%clk 0:00:34.1]} 47. Kd3
{[%clk 0:00:03.2]} 47... e4+ {[%clk 0:00:33.9]} 48. Ke2 {[%clk 0:00:03.2]} 48...
Kd4 {[%clk 0:00:33.2]} 49. Bg4 {[%clk 0:00:02]} 49... Kc3 {[%clk 0:00:32]} 50.
Bd7 {[%clk 0:00:02.6]} 50... Kb4 {[%clk 0:00:31.3]} 51. Kf2 {[%clk 0:00:02.8]}
51... g4 {[%clk 0:00:29.6]} 52. Ke2 {[%clk 0:00:03.7]} 52... g3 {[%clk
0:00:29.2]} 53. Kf1 {[%clk 0:00:03.3]} 53... e3 {[%clk 0:00:25.5]} 54. Bb5
{[%clk 0:00:03.3]} 54... Ka3 {[%clk 0:00:23.8]} 55. Kg2 {[%clk 0:00:03.8]} 55...
e2 {[%clk 0:00:22.4]} 56. Bxe2 {[%clk 0:00:02.6]} 56... Kxa4 {[%clk 0:00:22.7]}
57. Bd1+ {[%clk 0:00:02.4]} 57... Kb4 {[%clk 0:00:22.4]} 58. Kf3 {[%clk
0:00:03.3]} 58... Bc7 {[%clk 0:00:22]} 59. Kg2 {[%clk 0:00:03.9]} 59... a4
{[%clk 0:00:22.1]} 60. Kf3 {[%clk 0:00:04.5]} 60... a3 {[%clk 0:00:21.4]} 0-1

[Event "*** Titled Tuesday Blitz"]
[Site "Chess.com"]
[Date "2021.02.16"]
[Round "7"]
[White "vovachesss"]
[Black "rynos0411"]
[Result "0-1"]
[WhiteElo "2651"]
[BlackElo "2492"]
[TimeControl "180+1"]
[EndTime "11:19:53 PST"]
[Termination "rynos0411 won on time"]

1. e4 {[%clk 0:03:00.9]} 1... c6 {[%clk 0:03:00.1]} 2. d4 {[%clk 0:03:00.5]}
2... d5 {[%clk 0:03:00.2]} 3. e5 {[%clk 0:03:01.2]} 3... Bf5 {[%clk 0:03:00.1]}
4. h4 {[%clk 0:03:01.5]} 4... h5 {[%clk 0:02:59.9]} 5. Bd3 {[%clk 0:03:00.3]}
5... Bxd3 {[%clk 0:03:00]} 6. Qxd3 {[%clk 0:03:01.2]} 6... Qa5+ {[%clk
0:03:00.3]} 7. Nd2 {[%clk 0:02:59.1]} 7... Qa6 {[%clk 0:03:00.8]} 8. c4 {[%clk
0:02:59.8]} 8... e6 {[%clk 0:02:59]} 9. Ngf3 {[%clk 0:02:59.1]} 9... Ne7 {[%clk
0:02:55.9]} 10. O-O {[%clk 0:02:55.4]} 10... c5 {[%clk 0:02:56.1]} 11. b3 {[%clk
0:02:52.1]} 11... Nbc6 {[%clk 0:02:56]} 12. Bb2 {[%clk 0:02:51]} 12... Rd8
{[%clk 0:02:54.7]} 13. dxc5 {[%clk 0:02:43.6]} 13... Nf5 {[%clk 0:02:43.9]} 14.
b4 {[%clk 0:02:01]} 14... Nxb4 {[%clk 0:02:40.9]} 15. Qb3 {[%clk 0:02:01.2]}
15... Bxc5 {[%clk 0:02:36.6]} 16. cxd5 {[%clk 0:02:01]} 16... Nxd5 {[%clk
0:02:32.2]} 17. Ne4 {[%clk 0:02:01]} 17... Be7 {[%clk 0:02:32.5]} 18. g3 {[%clk
0:01:39.8]} 18... O-O {[%clk 0:02:30.8]} 19. Nfg5 {[%clk 0:01:40]} 19... Nb6
{[%clk 0:02:24.4]} 20. Qf3 {[%clk 0:01:36.5]} 20... g6 {[%clk 0:02:20.8]} 21.
Nf6+ {[%clk 0:01:30.6]} 21... Bxf6 {[%clk 0:02:21]} 22. exf6 {[%clk 0:01:31.5]}
22... Qd3 {[%clk 0:02:18.6]} 23. Qxb7 {[%clk 0:01:29.3]} 23... Nc4 {[%clk
0:01:54.1]} 24. Bc1 {[%clk 0:01:17.2]} 24... Rd5 {[%clk 0:01:47.6]} 25. Bf4
{[%clk 0:01:03.5]} 25... e5 {[%clk 0:01:36]} 26. Rad1 {[%clk 0:00:27]} 26...
Qxd1 {[%clk 0:01:25.9]} 27. Rxd1 {[%clk 0:00:27.9]} 27... Rxd1+ {[%clk 0:01:26]}
28. Kg2 {[%clk 0:00:27.9]} 28... exf4 {[%clk 0:01:26.9]} 29. Nxf7 {[%clk
0:00:20.9]} 29... Rxf7 {[%clk 0:01:14.4]} 30. Qc8+ {[%clk 0:00:20.7]} 30... Kh7
{[%clk 0:01:13.4]} 31. Qxc4 {[%clk 0:00:20.9]} 31... Rxf6 {[%clk 0:01:03.8]} 32.
Qxf4 {[%clk 0:00:20.8]} 32... Rd7 {[%clk 0:00:57.5]} 33. Qe5 {[%clk 0:00:19.7]}
33... Rdf7 {[%clk 0:00:57.1]} 34. Kh3 {[%clk 0:00:14.6]} 34... Nh6 {[%clk
0:00:56.3]} 35. f4 {[%clk 0:00:11.6]} 35... Ng4 {[%clk 0:00:56.7]} 36. Qd5
{[%clk 0:00:09.4]} 36... Re7 {[%clk 0:00:56.4]} 37. Qc4 {[%clk 0:00:08.9]} 37...
Rd7 {[%clk 0:00:45.9]} 38. Qc3 {[%clk 0:00:06]} 38... Rfd6 {[%clk 0:00:36.4]}
39. f5 {[%clk 0:00:06.4]} 39... gxf5 {[%clk 0:00:33.7]} 40. Qf3 {[%clk
0:00:04.9]} 40... Kg6 {[%clk 0:00:32.7]} 41. Qf4 {[%clk 0:00:05]} 41... Rf6
{[%clk 0:00:26.8]} 42. Qg5+ {[%clk 0:00:05]} 42... Kf7 {[%clk 0:00:27.4]} 43.
Qxh5+ {[%clk 0:00:04.9]} 43... Ke7 {[%clk 0:00:26.9]} 44. Qh7+ {[%clk
0:00:03.4]} 44... Ke6 {[%clk 0:00:23.8]} 45. Qg8+ {[%clk 0:00:03.8]} 45... Ke7
{[%clk 0:00:24.2]} 46. Qg7+ {[%clk 0:00:04.1]} 46... Rf7 {[%clk 0:00:23.8]} 47.
Qc3 {[%clk 0:00:03.5]} 47... Kd8 {[%clk 0:00:20]} 48. Qa5+ {[%clk 0:00:03.3]}
48... Rc7 {[%clk 0:00:19.8]} 49. Qd5+ {[%clk 0:00:03.8]} 49... Rfd7 {[%clk
0:00:18.5]} 50. Qg8+ {[%clk 0:00:03.9]} 50... Ke7 {[%clk 0:00:18.4]} 51. Qg5+
{[%clk 0:00:04.4]} 51... Nf6 {[%clk 0:00:15.4]} 52. Qxf5 {[%clk 0:00:04.4]}
52... Rd5 {[%clk 0:00:16]} 53. Qf4 {[%clk 0:00:03.9]} 53... Rc3 {[%clk
0:00:14.9]} 54. Qb4+ {[%clk 0:00:03.3]} 54... Rdc5 {[%clk 0:00:14.5]} 55. Qb7+
{[%clk 0:00:02]} 55... Ke6 {[%clk 0:00:13.7]} 56. Qxa7 {[%clk 0:00:02.5]} 56...
Ne4 {[%clk 0:00:14]} 57. Qb6+ {[%clk 0:00:02.7]} 57... Kd5 {[%clk 0:00:14.1]}
58. Qd8+ {[%clk 0:00:02.9]} 58... Ke5 {[%clk 0:00:14.3]} 59. Qe8+ {[%clk
0:00:02.9]} 59... Kd5 {[%clk 0:00:14.7]} 60. Qg8+ {[%clk 0:00:02.8]} 60... Ke5
{[%clk 0:00:14.7]} 61. Qe8+ {[%clk 0:00:03.1]} 61... Kd4 {[%clk 0:00:15.1]} 62.
Qd7+ {[%clk 0:00:03.1]} 62... Rd5 {[%clk 0:00:15.4]} 63. Qg7+ {[%clk 0:00:03.1]}
63... Re5 {[%clk 0:00:15.8]} 64. Qd7+ {[%clk 0:00:03.1]} 64... Rd5 {[%clk
0:00:16.1]} 65. Qg7+ {[%clk 0:00:03.1]} 65... Kd3 {[%clk 0:00:15.3]} 66. h5
{[%clk 0:00:01.5]} 66... Kc2 {[%clk 0:00:15.6]} 67. h6 {[%clk 0:00:01.9]} 67...
Rxg3+ {[%clk 0:00:15]} 68. Qxg3 {[%clk 0:00:02.3]} 68... Nxg3 {[%clk 0:00:15.9]}
69. Kh4 {[%clk 0:00:01.5]} 69... Rh5+ {[%clk 0:00:15.2]} 0-1

[Event "*** Titled Tuesday Blitz"]
[Site "Chess.com"]
[Date "2021.02.16"]
[Round "7"]
[White "stepanosinovsky"]
[Black "Grieve72"]
[Result "0-1"]
[WhiteElo "2307"]
[BlackElo "2474"]
[TimeControl "180+1"]
[EndTime "11:19:53 PST"]
[Termination "Grieve72 won on time"]

1. e4 {[%clk 0:03:00.9]} 1... c5 {[%clk 0:02:49.9]} 2. Nf3 {[%clk 0:02:59.9]}
2... e6 {[%clk 0:02:47.8]} 3. Bc4 {[%clk 0:02:57]} 3... Nc6 {[%clk 0:02:19.8]}
4. O-O {[%clk 0:02:55.2]} 4... a6 {[%clk 0:02:19.9]} 5. Re1 {[%clk 0:02:52]}
5... b5 {[%clk 0:02:18.9]} 6. Bf1 {[%clk 0:02:51.1]} 6... Bb7 {[%clk 0:02:18.5]}
7. c3 {[%clk 0:02:49.7]} 7... Nf6 {[%clk 0:02:04.7]} 8. d4 {[%clk 0:02:49.2]}
8... d5 {[%clk 0:02:00.1]} 9. exd5 {[%clk 0:02:40.6]} 9... Qxd5 {[%clk
0:01:52.3]} 10. a4 {[%clk 0:02:36.7]} 10... cxd4 {[%clk 0:01:42.4]} 11. axb5
{[%clk 0:02:35]} 11... axb5 {[%clk 0:01:39.8]} 12. Rxa8+ {[%clk 0:02:35.9]}
12... Bxa8 {[%clk 0:01:40.7]} 13. cxd4 {[%clk 0:02:31.6]} 13... Bb4 {[%clk
0:01:23.2]} 14. Nc3 {[%clk 0:02:30.9]} 14... Bxc3 {[%clk 0:01:22.5]} 15. bxc3
{[%clk 0:02:31.8]} 15... O-O {[%clk 0:01:20.6]} 16. Bf4 {[%clk 0:02:01.8]} 16...
Rd8 {[%clk 0:01:08.7]} 17. Qb1 {[%clk 0:01:53.1]} 17... b4 {[%clk 0:00:47.4]}
18. c4 {[%clk 0:01:01.2]} 18... Qa5 {[%clk 0:00:40.8]} 19. Rd1 {[%clk
0:00:55.1]} 19... h6 {[%clk 0:00:32.9]} 20. h3 {[%clk 0:00:52.7]} 20... Ne7
{[%clk 0:00:22.9]} 21. Ne5 {[%clk 0:00:48.9]} 21... Nf5 {[%clk 0:00:21]} 22. d5
{[%clk 0:00:47.3]} 22... Bb7 {[%clk 0:00:06.9]} 23. Nc6 {[%clk 0:00:44.5]} 23...
Bxc6 {[%clk 0:00:06.5]} 24. dxc6 {[%clk 0:00:45.4]} 24... Rc8 {[%clk 0:00:05.6]}
25. c7 {[%clk 0:00:41.8]} 25... Kh7 {[%clk 0:00:05.9]} 26. g4 {[%clk 0:00:40.3]}
26... g6 {[%clk 0:00:02.1]} 27. gxf5 {[%clk 0:00:39.5]} 27... gxf5 {[%clk
0:00:03]} 28. Qb2 {[%clk 0:00:38.1]} 28... Rg8+ {[%clk 0:00:02.7]} 29. Kh2
{[%clk 0:00:34.6]} 29... Ne4 {[%clk 0:00:03.6]} 30. Rd8 {[%clk 0:00:32]} 30...
Rxd8 {[%clk 0:00:03.8]} 31. cxd8=Q {[%clk 0:00:31.3]} 31... Qxd8 {[%clk
0:00:04.7]} 32. Bg2 {[%clk 0:00:28.9]} 32... Qd3 {[%clk 0:00:02.2]} 33. Qxb4
{[%clk 0:00:23.8]} 33... Nxf2 {[%clk 0:00:02.4]} 34. Qb7 {[%clk 0:00:21.9]}
34... Kg6 {[%clk 0:00:02]} 35. c5 {[%clk 0:00:20.8]} 35... Ne4 {[%clk
0:00:02.1]} 36. Qb2 {[%clk 0:00:18.8]} 36... Qc4 {[%clk 0:00:01.4]} 37. Bxe4
{[%clk 0:00:17]} 37... fxe4 {[%clk 0:00:01.3]} 38. Qg2+ {[%clk 0:00:16.8]} 38...
Kf5 {[%clk 0:00:01.4]} 39. Be3 {[%clk 0:00:16.8]} 39... Qd5 {[%clk 0:00:01.5]}
40. Qf2+ {[%clk 0:00:15.9]} 40... Kg6 {[%clk 0:00:02.4]} 41. Qg3+ {[%clk
0:00:15.3]} 41... Kf6 {[%clk 0:00:02.7]} 42. Qf4+ {[%clk 0:00:15]} 42... Ke7
{[%clk 0:00:03.1]} 43. Qxh6 {[%clk 0:00:14.3]} 43... Qd3 {[%clk 0:00:02.6]} 44.
Qg5+ {[%clk 0:00:13.4]} 44... Kd7 {[%clk 0:00:03]} 45. Qg3 {[%clk 0:00:12.5]}
45... f5 {[%clk 0:00:02.8]} 46. Qd6+ {[%clk 0:00:11]} 46... Qxd6+ {[%clk
0:00:03.1]} 47. cxd6 {[%clk 0:00:11.9]} 47... Kxd6 {[%clk 0:00:04]} 48. Kg3
{[%clk 0:00:11.6]} 48... e5 {[%clk 0:00:04]} 49. Bc1 {[%clk 0:00:10.2]} 49...
Ke6 {[%clk 0:00:03.9]} 50. Bb2 {[%clk 0:00:09.4]} 50... f4+ {[%clk 0:00:03.5]}
51. Kg4 {[%clk 0:00:09.4]} 51... Kf6 {[%clk 0:00:03.2]} 52. h4 {[%clk
0:00:08.9]} 52... e3 {[%clk 0:00:03.5]} 53. Bc1 {[%clk 0:00:06.8]} 53... e2
{[%clk 0:00:02.2]} 54. Bd2 {[%clk 0:00:06.6]} 54... Kg6 {[%clk 0:00:02.7]} 55.
Be1 {[%clk 0:00:06]} 55... Kh6 {[%clk 0:00:02.3]} 56. Bf2 {[%clk 0:00:04.8]}
56... Kg6 {[%clk 0:00:02.2]} 57. Kf3 {[%clk 0:00:03.7]} 57... Kh5 {[%clk
0:00:03.1]} 58. Ke4 {[%clk 0:00:01.6]} 58... Kg4 {[%clk 0:00:03.1]} 0-1

[Event "*** Titled Tuesday Blitz"]
[Site "Chess.com"]
[Date "2021.02.16"]
[Round "7"]
[White "Kaslask"]
[Black "Piotrek1979"]
[Result "1/2-1/2"]
[WhiteElo "2265"]
[BlackElo "2410"]
[TimeControl "180+1"]
[EndTime "11:19:53 PST"]
[Termination "Game drawn - insufficient material"]

1. d4 {[%clk 0:03:00.9]} 1... Nf6 {[%clk 0:02:48.5]} 2. c4 {[%clk 0:03:00.5]}
2... g6 {[%clk 0:02:48.9]} 3. Nc3 {[%clk 0:03:00.1]} 3... Bg7 {[%clk 0:02:49.8]}
4. e4 {[%clk 0:03:00]} 4... d6 {[%clk 0:02:50.2]} 5. Be2 {[%clk 0:02:59.8]} 5...
O-O {[%clk 0:02:50.6]} 6. Nf3 {[%clk 0:02:59.3]} 6... e5 {[%clk 0:02:49.8]} 7.
O-O {[%clk 0:02:58.9]} 7... Nbd7 {[%clk 0:02:48.3]} 8. Be3 {[%clk 0:02:57]} 8...
Qe7 {[%clk 0:02:40.3]} 9. d5 {[%clk 0:02:53.4]} 9... Nc5 {[%clk 0:02:36.4]} 10.
Nd2 {[%clk 0:02:51]} 10... a5 {[%clk 0:02:35.1]} 11. Rb1 {[%clk 0:02:37.7]}
11... Bd7 {[%clk 0:02:24.1]} 12. b3 {[%clk 0:02:36.2]} 12... Ne8 {[%clk
0:02:20]} 13. a3 {[%clk 0:02:25.5]} 13... f5 {[%clk 0:02:19]} 14. f3 {[%clk
0:02:22.7]} 14... Nf6 {[%clk 0:02:00.7]} 15. b4 {[%clk 0:02:18.3]} 15... axb4
{[%clk 0:02:01.6]} 16. axb4 {[%clk 0:02:17.9]} 16... Na4 {[%clk 0:01:55.5]} 17.
Qc2 {[%clk 0:02:10.3]} 17... Nxc3 {[%clk 0:01:51.3]} 18. Qxc3 {[%clk 0:02:09.4]}
18... fxe4 {[%clk 0:01:51.2]} 19. Nxe4 {[%clk 0:02:08.2]} 19... Nxe4 {[%clk
0:01:43.2]} 20. fxe4 {[%clk 0:02:07.4]} 20... Qh4 {[%clk 0:01:43.5]} 21. Bf3
{[%clk 0:02:01.8]} 21... Bh6 {[%clk 0:01:41.7]} 22. Bf2 {[%clk 0:01:55.9]} 22...
Qg5 {[%clk 0:01:37.6]} 23. Ra1 {[%clk 0:01:51.8]} 23... Qd2 {[%clk 0:01:02]} 24.
Qxd2 {[%clk 0:01:43.9]} 24... Bxd2 {[%clk 0:01:02.9]} 25. b5 {[%clk 0:01:42.3]}
25... b6 {[%clk 0:00:50.6]} 26. Rfd1 {[%clk 0:01:28.3]} 26... Bb4 {[%clk
0:00:49.7]} 27. Rdc1 {[%clk 0:01:22.2]} 27... Kg7 {[%clk 0:00:38.9]} 28. Kf1
{[%clk 0:01:21.6]} 28... h5 {[%clk 0:00:37.8]} 29. Ke2 {[%clk 0:01:20]} 29...
Bc5 {[%clk 0:00:32.5]} 30. Bxc5 {[%clk 0:01:14.6]} 30... dxc5 {[%clk 0:00:33.4]}
31. h3 {[%clk 0:01:10.8]} 31... h4 {[%clk 0:00:26.7]} 32. Kd2 {[%clk 0:01:08.5]}
32... Kh6 {[%clk 0:00:26.3]} 33. Ke3 {[%clk 0:01:07.5]} 33... Kg5 {[%clk
0:00:26]} 34. Rf1 {[%clk 0:01:07]} 34... Ra5 {[%clk 0:00:25.4]} 35. Rxa5 {[%clk
0:01:05.7]} 35... bxa5 {[%clk 0:00:25.3]} 36. Ra1 {[%clk 0:01:05.5]} 36... Ra8
{[%clk 0:00:25]} 37. Bd1 {[%clk 0:01:04.8]} 37... Kf6 {[%clk 0:00:19.7]} 38. Ba4
{[%clk 0:01:02.9]} 38... Ke7 {[%clk 0:00:19.3]} 39. Rf1 {[%clk 0:00:59.9]} 39...
Rb8 {[%clk 0:00:15.6]} 40. Rf2 {[%clk 0:00:58.8]} 40... Rb6 {[%clk 0:00:15.1]}
41. Rf1 {[%clk 0:00:57.6]} 41... g5 {[%clk 0:00:15.2]} 42. Ra1 {[%clk
0:00:54.9]} 42... Rb8 {[%clk 0:00:14.9]} 43. Bd1 {[%clk 0:00:53]} 43... Ra8
{[%clk 0:00:14.5]} 44. Ra4 {[%clk 0:00:51.1]} 44... Kd6 {[%clk 0:00:13.9]} 45.
Bf3 {[%clk 0:00:49.9]} 45... Ra7 {[%clk 0:00:12.7]} 46. Bh5 {[%clk 0:00:49.3]}
46... Ra8 {[%clk 0:00:12.4]} 47. Bg6 {[%clk 0:00:49.4]} 47... Ke7 {[%clk
0:00:12]} 48. Bh5 {[%clk 0:00:46.2]} 48... Bc8 {[%clk 0:00:11.2]} 49. Kf3 {[%clk
0:00:45.3]} 49... Bd7 {[%clk 0:00:11.1]} 50. Bg4 {[%clk 0:00:45.4]} 50... Rf8+
{[%clk 0:00:10.7]} 51. Bf5 {[%clk 0:00:45]} 51... Bxf5 {[%clk 0:00:09.6]} 52.
exf5 {[%clk 0:00:45]} 52... Rxf5+ {[%clk 0:00:10.5]} 53. Ke3 {[%clk 0:00:44.9]}
53... Rf1 {[%clk 0:00:08.7]} 54. Rxa5 {[%clk 0:00:44.8]} 54... Rc1 {[%clk
0:00:09]} 55. Ra7 {[%clk 0:00:43.8]} 55... Rc3+ {[%clk 0:00:06.9]} 56. Kd2
{[%clk 0:00:42.2]} 56... Rxc4 {[%clk 0:00:07.8]} 57. b6 {[%clk 0:00:42.3]} 57...
Kd6 {[%clk 0:00:07.1]} 58. bxc7 {[%clk 0:00:40.8]} 58... Kd7 {[%clk 0:00:06.9]}
59. d6 {[%clk 0:00:41]} 59... Rd4+ {[%clk 0:00:07.5]} 60. Ke3 {[%clk 0:00:41]}
60... Rxd6 {[%clk 0:00:08.4]} 61. Ke4 {[%clk 0:00:41.2]} 61... Rd2 {[%clk
0:00:07.6]} 62. Kxe5 {[%clk 0:00:40.9]} 62... Rxg2 {[%clk 0:00:07.3]} 63. Kd5
{[%clk 0:00:37.4]} 63... g4 {[%clk 0:00:08.2]} 64. hxg4 {[%clk 0:00:36.4]} 64...
h3 {[%clk 0:00:09.1]} 65. c8=Q+ {[%clk 0:00:33.8]} 65... Kxc8 {[%clk 0:00:08.2]}
66. Rh7 {[%clk 0:00:33.9]} 66... h2 {[%clk 0:00:09.1]} 67. Kxc5 {[%clk
0:00:33.8]} 67... Kd8 {[%clk 0:00:08.7]} 68. Kd6 {[%clk 0:00:33]} 68... Ke8
{[%clk 0:00:09.6]} 69. g5 {[%clk 0:00:32.1]} 69... Kf8 {[%clk 0:00:08.6]} 70.
Ke6 {[%clk 0:00:31]} 70... Kg8 {[%clk 0:00:09.5]} 71. Rh4 {[%clk 0:00:29.9]}
71... Rxg5 {[%clk 0:00:09.2]} 72. Rxh2 {[%clk 0:00:28.7]} 72... Kg7 {[%clk
0:00:10.1]} 73. Rf2 {[%clk 0:00:26.9]} 73... Rg6+ {[%clk 0:00:11]} 74. Ke7
{[%clk 0:00:26]} 74... Rg5 {[%clk 0:00:10.9]} 75. Rf7+ {[%clk 0:00:25.3]} 75...
Kg6 {[%clk 0:00:11.8]} 76. Rf6+ {[%clk 0:00:25.4]} 76... Kh5 {[%clk 0:00:12.7]}
77. Re6 {[%clk 0:00:24.4]} 77... Rg6 {[%clk 0:00:12]} 78. Rxg6 {[%clk
0:00:23.6]} 78... Kxg6 {[%clk 0:00:12.9]} 1/2-1/2